fUST/lending_fUST_20240917
["ID","MTS","AMOUNT","RATE_DAILY","PERIOD"]
[338340002,1726516245567,-2002.061741,0.000204,2]
[338340003,1726516245576,-151.0,0.000204,2]
[338340004,1726516245585,-236.353569,0.000204,2]
[338340005,1726516245595,-236.353569,0.000204,2]
[338340006,1726516245604,-236.353569,0.000204,2]
[338340007,1726516245613,-236.353569,0.000204,2]
[338340008,1726516245622,-455.386312,0.000204,2]
[338340009,1726516245631,-455.386312,0.000204,2]
[338340010,1726516245641,-1000.0,0.000205,2]
[338340011,1726516245651,-800.0,0.0002051,30]
[338340012,1726516245662,-800.0,0.0002051,30]
[338340013,1726516245671,-800.0,0.0002051,30]
[338340014,1726516245680,-800.0,0.0002051,30]
[338340015,1726516245689,-800.0,0.0002051,30]
[338340016,1726516245698,-800.0,0.0002051,30]
[338340017,1726516245708,-500.0,0.0002051,30]
[338340018,1726516245718,-500.0,0.0002051,30]
[338340019,1726516245727,-800.0,0.0002051,30]
[338340020,1726516245737,-500.0,0.0002051,30]
[338340021,1726516245746,-800.0,0.0002051,30]
[338340022,1726516245755,-500.0,0.0002051,30]
[338340023,1726516245765,-499.3,0.0002051,30]
[338340024,1726516245774,-800.0,0.0002051,30]
[338340025,1726516245784,-500.0,0.0002051,30]
[338340026,1726516245793,-800.0,0.0002051,30]
[338340028,1726516245802,-500.0,0.0002051,30]
[338340029,1726516245811,-800.0,0.0002051,30]
[338340030,1726516245820,-500.0,0.0002051,30]
[338340031,1726516245829,-800.0,0.0002051,30]
[338340032,1726516245838,-500.0,0.0002051,30]
[338340033,1726516245847,-800.0,0.0002051,30]
[338340034,1726516245857,-500.0,0.0002051,30]
[338340035,1726516245867,-500.0,0.0002051,30]
[338340036,1726516245876,-500.0,0.0002051,30]
[338340037,1726516245885,-500.0,0.0002051,30]
[338340038,1726516245895,-556.0526157,0.0002051,30]
[338340039,1726516245904,-545.47049323,0.0002051,30]
[338340040,1726516245913,-500.0,0.0002051,30]
[338340041,1726516245922,-500.0,0.0002051,30]
[338340042,1726516245932,-504.70359376,0.0002051,30]
[338340043,1726516245941,-500.0,0.0002051,30]
[338340044,1726516245951,-500.0,0.0002051,30]
[338340045,1726516245962,-500.0,0.0002051,30]
[338340046,1726516245971,-500.0,0.0002051,30]
[338340047,1726516245980,-1000.0,0.0002051,30]
[338340048,1726516245989,-500.0,0.0002051,30]
[338340049,1726516245998,-1000.0,0.0002051,30]
[338340050,1726516246007,-1000.0,0.0002051,30]
[338340052,1726516246016,-1000.0,0.0002051,30]
[338340054,1726516246025,-500.0,0.0002051,30]
[338340055,1726516246035,-154.74467129,0.0002051,30]
[338340056,1726516246044,-1000.0,0.0002051,30]
[338340057,1726516246056,-600.0,0.0002051,30]
[338340059,1726516246066,-1000.0,0.0002051,30]
[338340060,1726516246075,-600.0,0.0002051,30]
[338340061,1726516246085,-1000.0,0.0002051,30]
[338340062,1726516246094,-600.0,0.0002051,30]
[338340063,1726516246103,-1000.0,0.0002051,30]
[338340064,1726516246112,-938.06000324,0.0002051,30]
[338340066,1726516246124,-1000.0,0.0002051,30]
[338340067,1726516246134,-600.0,0.0002051,30]
[338340068,1726516246143,-1000.0,0.0002051,30]
[338340069,1726516246153,-600.0,0.0002051,30]
[338340070,1726516246162,-1000.0,0.0002051,30]
[338340071,1726516246172,-600.0,0.0002051,30]
[338340072,1726516246182,-600.0,0.0002051,30]
[338340073,1726516246191,-1000.0,0.0002051,30]
[338340074,1726516246199,-1000.0,0.0002051,30]
[338340075,1726516246210,-600.0,0.0002051,30]
[338340076,1726516246219,-1000.0,0.0002051,30]
[338340077,1726516246228,-600.0,0.0002051,30]
[338340078,1726516246238,-600.0,0.0002051,30]
[338340079,1726516246247,-600.0,0.0002051,30]
[338340080,1726516246258,-600.0,0.0002051,30]
[338340081,1726516246267,-600.0,0.0002051,30]
[338340082,1726516246276,-500.0,0.0002051,30]
[338340083,1726516246287,-276.3340638,0.0002051,30]
[338340084,1726516246297,-500.0,0.0002051,30]
[338340085,1726516246306,-500.0,0.0002051,30]
[338340086,1726516246315,-500.0,0.0002051,30]
[338340087,1726516246326,-500.0,0.0002051,30]
[338340088,1726516246337,-499.3,0.0002051,30]
[338340090,1726516246347,-154.74467129,0.0002051,30]
[338340092,1726516246357,-2323.43,0.00020547,2]
[338340094,1726516246367,-1000.0,0.00020547,2]
[338340096,1726516246377,-500.0,0.00020548,2]
[338340097,1726516246386,-3794.886399,0.00020548,2]
[338340099,1726516246396,-5397.10966701,0.00020551,15]
[338340101,1726516246405,-300.0,0.00020561,2]
[338340102,1726516246414,-3200.0,0.00020561,2]
[338340104,1726516246423,-150.0,0.00020561,2]
[338340106,1726516246433,-168.29875,0.00020602,2]
[338340108,1726516246443,-754.490694,0.00020602,2]
[338340109,1726516246452,-967.414595,0.00020602,2]
[338340111,1726516246464,-301.796278,0.00020602,2]
[338340113,1726516246473,-386.965838,0.00020602,2]
[338340114,1726516246483,-829.598585,0.00020602,2]
[338340115,1726516246492,-3424.945616,0.00020602,2]
[338340117,1726516246502,-2160.85922,0.00020602,2]
[338340118,1726516246511,-337.7,0.00020604,2]
[338340119,1726516246521,-14572.21838849,0.0002061,2]
[338340120,1726516246531,-4272.91009079,0.0002066,7]
[338340121,1726516246540,-500.0,0.00020685,2]
[338340122,1726516246549,-151.0,0.000207,2]
[338340123,1726516246560,-151.0,0.000207,2]
[338340124,1726516246571,-151.0,0.000207,2]
[338340125,1726516246580,-151.0,0.000207,2]
[338340126,1726516246589,-151.0,0.000207,2]
[338340127,1726516246598,-151.0,0.000207,2]
[338340128,1726516246607,-224.601907,0.000207,2]
[338340129,1726516246616,-224.601907,0.000207,2]
[338340130,1726516246626,-284.901009,0.000207,2]
[338340131,1726516246636,-284.901009,0.000207,2]
[338340132,1726516246647,-848.187424,0.000207,2]
[338340133,1726516246657,-848.187424,0.000207,2]
[338340134,1726516246667,-848.187424,0.000207,2]
[338340135,1726516246676,-848.187424,0.000207,2]
[338340136,1726516246685,-167.0,0.0002078,3]
[338340137,1726516246695,-1000.0,0.000208,2]
[338340138,1726516246704,-2323.43,0.00020821,2]
[338340139,1726516246713,-337.7,0.00020823,2]
[338340140,1726516246723,-1000.0,0.00020842,2]
[338340141,1726516246733,-1000.0,0.00020842,2]
[338340142,1726516246743,-754.490694,0.00020853,2]
[338340143,1726516246752,-967.414595,0.00020853,2]
[338340144,1726516246762,-301.796278,0.00020853,2]
[338340145,1726516246771,-386.965838,0.00020853,2]
[338340146,1726516246780,-829.598585,0.00020853,2]
[338340147,1726516246789,-3424.945616,0.00020853,2]
[338340148,1726516246799,-2160.85922,0.00020853,2]
[338340149,1726516246808,-500.0,0.00020959,2]
[338340150,1726516246817,-259.45624802,0.00021,2]
[338340151,1726516246826,-233.81968712,0.00021,2]
[338340152,1726516246836,-10184.16858126,0.00021,2]
[338340153,1726516246845,-3000.0,0.00021,2]
[338340154,1726516246854,-1000.0,0.00021,21]
[338340155,1726516246864,-815.53405507,0.00021,2]
[338340156,1726516246874,-178.69892308,0.00021,2]
[338340157,1726516246883,-3000.0,0.00021,2]
[338340158,1726516246892,-3000.0,0.0002101,2]
[338340159,1726516246902,-3000.0,0.0002102,2]
[338340160,1726516246911,-3000.0,0.0002103,2]
[338340161,1726516246921,-3000.0,0.0002104,2]
[338340162,1726516246930,-337.7,0.00021042,2]
[338340163,1726516246939,-3000.0,0.0002105,2]
[338340164,1726516246948,-3000.0,0.0002106,2]
[338340165,1726516246957,-3000.0,0.0002107,2]
[338340166,1726516246967,-3000.0,0.0002108,2]
[338340167,1726516246976,-3000.0,0.0002109,2]
[338340168,1726516246985,-2323.43,0.00021095,2]
[338340169,1726516246994,-151.0,0.00021095,2]
[338340170,1726516247006,-153.114606,0.00021095,2]
[338340171,1726516247016,-500.0,0.00021095,2]
[338340172,1726516247025,-3000.0,0.000211,2]
[338340173,1726516247036,-168.298751,0.00021105,2]
[338340174,1726516247045,-168.29875,0.00021105,2]
[338340175,1726516247059,-754.490694,0.00021105,2]
[338340176,1726516247068,-967.414595,0.00021105,2]
[338340177,1726516247077,-301.796278,0.00021105,2]
[338340178,1726516247086,-386.965838,0.00021105,2]
[338340179,1726516247097,-829.598585,0.00021105,2]
[338340180,1726516247106,-3424.945616,0.00021105,2]
[338340181,1726516247115,-2160.85922,0.00021105,2]
[338340182,1726516247125,-151.0,0.0002111,2]
[338340183,1726516247136,-151.0,0.0002111,2]
[338340184,1726516247146,-292.52339,0.0002111,2]
[338340185,1726516247156,-292.52339,0.0002111,2]
[338340186,1726516247165,-151.0,0.0002111,2]
[338340187,1726516247174,-178.383246,0.0002111,2]
[338340188,1726516247185,-178.383246,0.0002111,2]
[338340189,1726516247195,-3000.0,0.0002111,2]
[338340190,1726516247204,-1866.73479429,0.0002112,2]
[338340191,1726516247778,-1133.26520571,0.0002112,2]
[338340192,1726516247789,-600.0,0.00021124,3]
[338340193,1726516247798,-3000.0,0.0002113,2]
[338340194,1726516247807,-3000.0,0.0002114,2]
[338340195,1726516247826,-3000.0,0.0002115,2]
[338340196,1726516247835,-479.675375,0.0002116,2]
[338340197,1726516247844,-479.675375,0.0002116,2]
[338340198,1726516247854,-216.770763,0.0002116,2]
[338340199,1726516247864,-216.770763,0.0002116,2]
[338340200,1726516247873,-205.817021,0.0002116,2]
[338340201,1726516247883,-205.817021,0.0002116,2]
[338340202,1726516247892,-151.0,0.0002116,2]
[338340203,1726516247901,-328.46616,0.0002116,2]
[338340204,1726516247910,-151.0,0.0002116,2]
[338340205,1726516247920,-179.660996,0.0002116,2]
[338340206,1726516247929,-328.46616,0.0002116,2]
[338340207,1726516247938,-179.660996,0.0002116,2]
[338340208,1726516247947,-151.0,0.0002116,2]
[338340209,1726516247956,-151.0,0.0002116,2]
[338340210,1726516247976,-151.0,0.0002116,2]
[338340211,1726516247986,-1520.386912,0.0002116,2]
[338340212,1726516247995,-151.0,0.0002116,2]
[338340213,1726516248004,-1131.60892909,0.0002116,2]
[338340214,1726516248046,-388.77798291,0.0002116,2]
[338340215,1726516248061,-151.0,0.0002116,2]
[338340216,1726516248070,-151.0,0.0002116,2]
[338340217,1726516248080,-243.314955,0.0002116,2]
[338340218,1726516248089,-184.82885334,0.0002116,2]
[338340219,1726516248250,-58.48610166,0.0002116,2]
[338340220,1726516248261,-175.72890408,0.0002116,2]
[338340221,1726516248885,-455.386312,0.000204,2]
[338340222,1726516248895,-455.386312,0.000204,2]
[338340223,1726516248904,-2824.27109592,0.0002116,2]
[338340224,1726516248913,-1050.408763,0.0002116,2]
[338340225,1726516248923,-160.248887,0.0002116,2]
[338340226,1726516248932,-1050.408763,0.0002116,2]
[338340227,1726516248942,-160.248887,0.0002116,2]
[338340228,1726516248952,-1267.150815,0.0002116,2]
[338340229,1726516248962,-1267.150815,0.0002116,2]
[338340230,1726516248972,-329.938109,0.0002116,2]
[338340231,1726516248983,-329.938109,0.0002116,2]
[338340232,1726516248992,-151.0,0.0002116,2]
[338340233,1726516249002,-1056.480414,0.0002116,2]
[338340234,1726516249012,-1056.480414,0.0002116,2]
[338340235,1726516249021,-1143.860245,0.0002116,2]
[338340236,1726516249031,-1143.860245,0.0002116,2]
[338340237,1726516249040,-4321.253403,0.0002116,2]
[338340238,1726516249051,-4321.253403,0.0002116,2]
[338340239,1726516249061,-412.981418,0.0002116,2]
[338340240,1726516249071,-412.981418,0.0002116,2]
[338340241,1726516249080,-151.0,0.0002116,2]
[338340242,1726516249090,-151.0,0.0002116,2]
[338340243,1726516249100,-151.0,0.0002116,2]
[338340244,1726516249109,-1713.723813,0.0002116,2]
[338340245,1726516249119,-422.637982,0.0002116,2]
[338340246,1726516249132,-1713.723813,0.0002116,2]
[338340247,1726516249142,-422.637982,0.0002116,2]
[338340248,1726516249151,-151.0,0.0002116,2]
[338340249,1726516249161,-164.268102,0.0002116,2]
[338340250,1726516249171,-164.268102,0.0002116,2]
[338340251,1726516249180,-151.0,0.0002116,2]
[338340252,1726516249190,-151.0,0.0002116,2]
[338340253,1726516249200,-151.0,0.0002116,2]
[338340254,1726516249211,-151.693322,0.0002116,2]
[338340255,1726516249222,-890.376021,0.0002116,2]
[338340256,1726516249406,-890.376021,0.0002116,2]
[338340257,1726516249420,-151.0,0.0002116,2]
[338340258,1726516249430,-151.0,0.0002116,2]
[338340259,1726516249440,-1232.087308,0.0002116,2]
[338340260,1726516249450,-1232.087308,0.0002116,2]
[338340261,1726516249462,-151.0,0.0002116,2]
[338340262,1726516249478,-567.288719,0.0002116,2]
[338340263,1726516249488,-567.288719,0.0002116,2]
[338340264,1726516249498,-2002.061741,0.0002116,2]
[338340265,1726516249508,-2002.061741,0.0002116,2]
[338340266,1726516249517,-151.0,0.0002116,2]
[338340267,1726516249526,-236.353569,0.0002116,2]
[338340268,1726516249535,-4000.0,0.0002116,2]
[338340269,1726516249546,-2674.51784673,0.0002116,2]
[338340270,1726516265205,191.05524335,0.00011996,2]
[338340271,1726516265228,808.94887829,0.00011996,2]
[338340277,1726516803814,500.0,0.0001,2]
[338340278,1726516804199,174.90290245,0.0001,2]
[338340281,1726516822018,241.356317,0.00013699,2]
[338340289,1726517228149,-300.0,0.00018596,2]
[338340290,1726517228172,-300.0,0.00018596,2]
[338340291,1726517228194,-689.52627827,0.00018597,2]
[338340292,1726517248114,-580.1067444,0.00018597,2]
[338340336,1726517432669,-225.0,0.00018596,2]
[338340338,1726517432681,-300.0,0.00018596,2]
[338340340,1726517432691,-2115.46187225,0.00018597,2]
[338340342,1726517432703,-336.29185285,0.00018597,2]
[338340343,1726517432724,-499.34775046,0.00018597,2]
[338340364,1726517438789,-277.50504593,0.00018597,2]
[338340389,1726517443585,-20401.76045584,0.00018597,2]
[338340390,1726517443598,-524.0,0.00018727,2]
[338340391,1726517443609,-150.0,0.00018727,2]
[338340392,1726517443618,-171.316084,0.00018752,2]
[338340393,1726517443629,-239.0,0.00019097,2]
[338340394,1726517443640,-167.030778,0.00019178,2]
[338340395,1726517443649,-151.0,0.00019748,2]
[338340396,1726517443659,-3397.03798511,0.000199,2]
[338340397,1726517443668,-1000.0,0.00019947,2]
[338340398,1726517443678,-151.0,0.00019965,2]
[338340399,1726517443691,-473.509,0.0001997,2]
[338340400,1726517443700,-1362.56,0.0002,2]
[338340401,1726517443710,-35056.56748543,0.0002,2]
[338340402,1726517443720,-151.15238579,0.0002,2]
[338340403,1726517443729,-508.704984,0.00020045,2]
[338340404,1726517443739,-432.171844,0.000201,2]
[338340405,1726517443748,-172.0,0.000201,2]
[338340406,1726517443759,-151.0,0.00020182,2]
[338340407,1726517443768,-241.356317,0.00020187,2]
[338340408,1726517443777,-420.0,0.00020278,2]
[338340409,1726517443787,-184.0,0.000203,2]
[338340410,1726517443796,-300.0,0.000203,8]
[338340411,1726517443805,-432.171844,0.00020351,2]
[338340412,1726517443815,-151.0,0.00020399,2]
[338340413,1726517443824,-300.0,0.00020493,2]
[338340414,1726517443833,-150.0,0.00020493,2]
[338340415,1726517443843,-3200.0,0.00020493,2]
[338340416,1726517443852,-182.88,0.0002051,2]
[338340417,1726517443862,-369.27171322,0.0002051,30]
[338340418,1726517443872,-432.171844,0.00020602,2]
[338340419,1726517443881,-151.0,0.00020616,2]
[338340420,1726517443891,-500.0,0.00020651,2]
[338340421,1726517443900,-500.0,0.00020788,2]
[338340422,1726517443909,-2770.78383862,0.000208,2]
[338340423,1726517443918,-533.0,0.000208,2]
[338340424,1726517443928,-500.0,0.00020822,2]
[338340425,1726517443937,-151.0,0.00020833,2]
[338340426,1726517443946,-432.171844,0.00020853,2]
[338340427,1726517443955,-500.0,0.00020909,2]
[338340428,1726517443965,-500.0,0.00020909,2]
[338340429,1726517443975,-1000.0,0.00021,21]
[338340430,1726517443984,-3000.0,0.00021,2]
[338340431,1726517443993,-1000.0,0.00021,2]
[338340432,1726517444003,-3000.0,0.0002101,2]
[338340433,1726517444012,-3000.0,0.0002102,2]
[338340434,1726517444021,-268.4170126,0.0002103,2]
[338340477,1726517503716,237.54462217,0.00013699,2]
[338340478,1726517503737,3.86905383,0.00013699,2]
[338340484,1726518053746,254.329859,0.00013699,2]
[338340493,1726518313316,1067.32995503,0.0001401,2]
[338340496,1726518454156,-300.0,0.00018777,2]
[338340497,1726518454180,-300.0,0.00018777,2]
[338340498,1726518454206,-645.50769954,0.00018778,2]
[338340499,1726518488484,837.14001514,0.0001401,2]
[338340519,1726518563152,254.468354,0.00013699,2]
[338340621,1726518642679,-300.0,0.00018777,2]
[338340622,1726518642690,-24254.49230046,0.00018778,2]
[338340623,1726518642700,-171.316084,0.00018898,2]
[338340624,1726518642711,-167.030778,0.00019178,2]
[338340625,1726518642721,-1170.61932492,0.00019397,2]
[338340626,1726518642731,-1170.61932492,0.00019507,2]
[338340627,1726518642743,-216.085922,0.00019538,2]
[338340628,1726518642753,-216.085922,0.00019538,2]
[338340629,1726518642763,-172.868737,0.00019538,2]
[338340630,1726518642773,-1170.61932492,0.00019589,2]
[338340631,1726518642783,-1170.61932492,0.00019699,2]
[338340632,1726518642793,-151.0,0.00019741,2]
[338340633,1726518642804,-160.983253,0.0001977,2]
[338340634,1726518642814,-1170.61932492,0.00019781,2]
[338340635,1726518642824,-172.868737,0.00019782,2]
[338340636,1726518642834,-524.0,0.0001983,2]
[338340637,1726518642844,-150.0,0.0001983,2]
[338340638,1726518642854,-1170.61932492,0.00019863,2]
[338340639,1726518642864,-151.0,0.00019958,2]
[338340640,1726518642874,-1170.61932492,0.00019973,2]
[338340641,1726518642884,-33354.24362899,0.0002,2]
[338340651,1726519064786,241.744936,0.00013699,2]
[338340748,1726519567622,242.35707,0.00013699,2]
[338340751,1726519643153,-300.0,0.00018756,2]
[338340752,1726519643178,-1084.66911806,0.00018757,2]
[338340754,1726519697013,2000.0,0.000195,90]
[338340757,1726519769147,-186.593077,0.00017811,2]
[338340758,1726519769188,-287.93762863,0.00018756,2]
[338340834,1726519839960,-300.0,0.00018756,2]
[338340835,1726519839970,-23815.33088194,0.00018757,2]
[338340836,1726519839979,-160.983253,0.00019178,2]
[338340837,1726519839988,-161.338989,0.00019178,2]
[338340838,1726519839998,-155.581864,0.00019538,2]
[338340839,1726519840007,-151.0,0.00019714,2]
[338340840,1726519840016,-155.581864,0.00019782,2]
[338340841,1726519840025,-208.5342696,0.000199,2]
[338340842,1726519840035,-151.0,0.00019934,2]
[338340843,1726519840044,-524.0,0.00019941,2]
[338340844,1726519840053,-150.0,0.00019941,2]
[338340845,1726519840064,-634.009,0.00019941,2]
[338340846,1726519840075,-1166.78,0.00019941,2]
[338340847,1726519840084,-150.0,0.00019941,2]
[338340848,1726519840094,-1702.32385644,0.0002,2]
[338340849,1726519840104,-1362.56,0.0002,2]
[338340850,1726519840115,-1629.37991646,0.0002,2]
[338340851,1726519840128,-930.26998109,0.0002,2]
[338340857,1726519842842,-150.0,0.00019941,2]
[338340858,1726519842852,-30794.59373144,0.0002,2]
[338340859,1726519842863,-473.509,0.0002,2]
[338340860,1726519842872,-175.75823356,0.0002,2]
[338340861,1726519842882,-172.868737,0.00020026,2]
[338340862,1726519842893,-155.581864,0.00020026,2]
[338340863,1726519842903,-508.704984,0.00020045,2]
[338340864,1726519842913,-1170.61932492,0.00020055,2]
[338340865,1726519842923,-151.0,0.00020154,2]
[338340866,1726519842933,-1170.61932492,0.00020164,2]
[338340867,1726519842943,-242.35707,0.00020187,2]
[338340868,1726519842953,-1170.61932492,0.00020247,2]
[338340869,1726519842962,-172.868737,0.0002027,2]
[338340870,1726519842972,-155.581864,0.0002027,2]
[338340871,1726519842982,-1170.61932492,0.00020356,2]
[338340872,1726519842992,-151.0,0.00020375,2]
[338340873,1726519843002,-1170.61932492,0.00020438,2]
[338340874,1726519843012,-788.42653535,0.0002045,5]
[338340875,1726519843022,-172.0,0.0002045,2]
[338340876,1726519843032,-420.0,0.0002045,2]
[338340877,1726519843041,-150.0,0.00020462,2]
[338340878,1726519843051,-300.0,0.00020462,2]
[338340879,1726519843061,-3200.0,0.00020462,2]
[338340880,1726519843071,-182.88,0.0002051,7]
[338340881,1726519843081,-369.27171322,0.0002051,30]
[338340882,1726519843091,-500.0,0.00020514,2]
[338340883,1726519843101,-216.085922,0.00020514,2]
[338340884,1726519843111,-216.085922,0.00020514,2]
[338340885,1726519843121,-172.868737,0.00020514,2]
[338340886,1726519843131,-155.581864,0.00020514,2]
[338340887,1726519843140,-151.0,0.00020595,2]
[338340888,1726519843150,-5000.0,0.000206,2]
[338340889,1726519843159,-2770.78383862,0.000208,2]
[338340890,1726519843169,-151.0,0.00020815,2]
[338340891,1726519843179,-500.0,0.00020822,2]
[338340892,1726519843189,-2429.27935278,0.00020948,2]
[338340893,1726519843199,-500.0,0.0002095,2]
[338340894,1726519843208,-500.0,0.0002095,2]
[338340895,1726519843218,-177.15584514,0.0002095,2]
[338340896,1726519843228,-486.37148386,0.0002095,2]
[338340897,1726519843238,-169.83040305,0.0002095,2]
[338340898,1726519843248,-205.36832323,0.0002095,2]
[338340899,1726519843258,-9315.39985104,0.00020951,3]
[338340900,1726519843275,-2889.7,0.00020951,3]
[338340941,1726519845807,-1166.78,0.00020951,3]
[338340963,1726520062314,230.239216,0.00013699,2]
[338340973,1726520556105,229.013753,0.00013699,2]
[338340985,1726520842143,-300.0,0.00018811,2]
[338340986,1726520842168,-300.0,0.00018811,2]
[338340987,1726520842191,-1581.48656708,0.00018812,2]
[338340988,1726520843328,-267.10667229,0.00018812,2]
[338341052,1726521031991,-225.0,0.00018811,2]
[338341054,1726521032002,-300.0,0.00018811,2]
[338341056,1726521032011,-217.25231249,0.00018812,2]
[338341059,1726521032023,-1900.9847661,0.00018812,2]
[338341154,1726521042998,-9.68728738,0.00018812,2]
[338341155,1726521043011,-20923.48239466,0.00018812,2]
[338341156,1726521043021,-206.5680027,0.00018812,2]
[338341157,1726521043030,-197.620922,0.00018927,2]
[338341158,1726521043041,-167.030778,0.00019178,2]
[338341159,1726521043051,-197.620922,0.0001942,2]
[338341160,1726521043060,-283.504729,0.00019538,2]
[338341161,1726521043069,-283.504729,0.00019782,2]
[338341162,1726521043078,-10982.983194,0.000199,2]
[338341163,1726521043088,-3397.03798511,0.000199,2]
[338341164,1726521043097,-197.620922,0.00019914,2]
[338341165,1726521043106,-150.0,0.00019941,2]
[338341166,1726521043115,-508.704984,0.0001995,2]
[338341167,1726521043125,-3331.7037729,0.0002,2]
[338341168,1726521043134,-27528.92730152,0.0002,2]
[338341188,1726521046219,-246.25645017,0.0002,2]
[338341189,1726521091315,240.048148,0.00013699,2]
[338341208,1726521658413,238.597347,0.00013699,2]
[338341222,1726521775917,1294.55665947,0.0001401,2]
[338341332,1726522030293,-206.5680027,0.00018431,2]
[338341333,1726522030315,-63.77205448,0.00018547,2]
[338341363,1726522179453,249.363881,0.00013699,2]
[338341479,1726522240364,-300.0,0.00018419,2]
[338341481,1726522240373,-17156.50424267,0.0001842,2]
[338341573,1726522243225,-7743.49575733,0.0001842,2]
[338341574,1726522243234,-197.620922,0.00018674,2]
[338341575,1726522243244,-500.0,0.00018759,2]
[338341576,1726522243254,-197.620922,0.00019161,2]
[338341577,1726522243264,-161.6738,0.00019178,2]
[338341578,1726522243273,-189.003154,0.00019538,2]
[338341579,1726522243282,-197.620922,0.00019647,2]
[338341580,1726522243291,-151.0,0.00019873,2]
[338341581,1726522243301,-3556.52530793,0.000199,2]
[338341582,1726522243311,-508.704984,0.0001995,2]
[338341583,1726522243321,-3019.40997975,0.0002,2]
[338341584,1726522243330,-1362.56,0.0002,2]
[338341585,1726522243340,-27528.92730152,0.0002,2]
[338341586,1726522243349,-2118.6651917,0.0002,2]
[338341712,1726522246268,-958.31952172,0.0002,2]
[338341740,1726522722338,246.86867,0.00013699,2]
[338341805,1726523225970,243.953633,0.00013699,2]
[338341806,1726523232130,-300.0,0.00018753,2]
[338341807,1726523232152,-300.0,0.00018753,2]
[338341808,1726523232178,-19460.209025,0.00018754,2]
[338341809,1726523232199,-1170.61932492,0.00019397,2]
[338341810,1726523232219,-1170.61932492,0.00019507,2]
[338341811,1726523232243,-189.003154,0.00019538,2]
[338341812,1726523232264,-1170.61932492,0.00019589,2]
[338341813,1726523232285,-1170.61932492,0.00019699,2]
[338341814,1726523232306,-844.70375192,0.00019763,2]
[338341815,1726523250086,-277.51059462,0.00019763,2]
[338341884,1726523432426,-157.992851,0.00019178,2]
[338341886,1726523432436,-1170.61932492,0.00019781,2]
[338341888,1726523432445,-300.0,0.000198,2]
[338341890,1726523432455,-309.4415993,0.00019801,2]
[338341892,1726523432465,-208.6350023,0.00019801,2]
[338341894,1726523432475,-208.6350023,0.00019801,2]
[338341896,1726523432486,-208.6350023,0.00019801,2]
[338341898,1726523432496,-153.2837228,0.00019801,2]
[338341900,1726523432506,-208.6350023,0.00019801,2]
[338341902,1726523432515,-208.6350023,0.00019801,2]
[338341904,1726523432525,-233.4409342,0.00019801,2]
[338341907,1726523432539,-153.0,0.00019801,2]
[338341909,1726523432548,-90.61005281,0.00019801,2]
[338341942,1726523432985,-118.02494949,0.00019801,2]
[338341943,1726523432995,-746.14395983,0.00019863,2]
[338341944,1726523433090,-424.47536509,0.00019863,2]
[338341945,1726523433101,-208.6350023,0.00019863,2]
[338341946,1726523433111,-153.0,0.00019863,2]
[338341947,1726523433121,-153.0,0.00019863,2]
[338341948,1726523433131,-153.0,0.00019863,2]
[338341949,1726523433142,-153.0,0.00019863,2]
[338341950,1726523433152,-153.0,0.00019863,2]
[338341951,1726523433162,-153.0,0.00019863,2]
[338341952,1726523433173,-153.0,0.00019863,2]
[338341953,1726523433185,-153.0,0.00019863,2]
[338341954,1726523433196,-153.0,0.00019863,2]
[338341955,1726523433205,-153.0,0.00019863,2]